bitfinex/quotes_ETHUSD_20230701
["timestamp","ask_amount","ask_price","bid_price","bid_amount"]
[1688222552579,13.39092,1924.8,1924.3,16.30512442]
[1688222554322,3.0,1924.8,1924.3,16.30512442]
[1688222554632,3.0,1924.8,1924.4,0.48]
[1688222554920,3.0,1924.9,1924.5,5.1961]
[1688222555424,8.19513,1924.9,1924.5,5.1961]
[1688222557079,8.61774317,1924.9,1924.5,5.1961]
[1688222558825,8.61774317,1924.9,1924.5,5.21015165]
[1688222559216,8.19513,1924.9,1924.5,5.21015165]
[1688222559431,8.19513,1924.9,1924.5,6.64100906]
[1688222561237,15.98779,1924.9,1924.5,0.01405165]
[1688222562164,17.63569,1924.9,1924.5,0.01405165]
[1688222567148,15.03816,1924.9,1924.5,5.21011165]
[1688222568024,9.84303,1924.9,1924.5,5.21011165]
[1688222568626,3.0,1924.9,1924.5,10.40626165]
[1688222568868,3.0,1924.9,1924.6,1.04062616]
[1688222569241,3.0,1924.9,1924.6,11.43231616]
[1688222569443,9.82183113,1925.1,1924.6,11.43231616]
[1688222569665,3.0,1925.0,1924.6,11.43231616]
[1688222573159,8.19486,1925.0,1924.6,11.43231616]
[1688222573357,8.19486,1925.0,1924.7,1.14323162]
[1688222574386,13.38972,1925.0,1924.7,6.33882162]
[1688222574557,13.38972,1925.0,1924.6,9.79638616]
[1688222574737,13.38972,1925.0,1924.6,14.99226616]
[1688222576341,13.38972,1925.0,1924.6,9.79638616]
[1688222577058,13.38972,1925.0,1924.6,14.99226616]
[1688222577703,13.38972,1925.0,1924.6,9.79638616]
[1688222578014,13.38972,1925.0,1924.6,14.99226616]
[1688222579005,13.38972,1925.0,1924.6,9.79638616]
[1688222581973,13.38972,1925.0,1924.7,0.97963862]
[1688222582173,13.38972,1925.0,1924.6,14.99226616]
[1688222583713,13.38972,1925.0,1924.6,9.79638616]
[1688222586540,8.19486,1925.0,1924.6,9.79638616]
[1688222587427,3.0,1925.0,1924.6,14.99226616]
[1688222587832,4.62718113,1925.1,1924.6,14.99226616]
[1688222588036,9.82172113,1925.1,1924.7,7.17479662]
[1688222588240,4.62718113,1925.1,1924.7,7.17479662]
[1688222589201,9.82179113,1925.1,1924.7,7.17479662]
[1688222591342,15.01640113,1925.1,1924.7,1.97922662]
[1688222592251,15.01640113,1925.1,1924.7,7.17481662]
[1688222592420,15.01640113,1925.1,1924.8,0.71748166]
[1688222592608,15.01640113,1925.1,1924.7,7.17481662]
[1688222595542,17.61366113,1925.1,1924.7,7.17481662]
[1688222595736,17.61366113,1925.1,1924.7,5.67559]
[1688222600866,20.30118297,1925.1,1924.5,5.21008165]
[1688222601067,20.30118297,1925.1,1924.3,30.03]
[1688222601068,25.49579297,1925.1,1924.3,30.03]
[1688222601259,12.98842,1924.8,1924.2,2.1507]
[1688222601457,10.39236,1924.5,1924.0,6.55201642]
[1688222601694,10.39236,1924.5,1924.0,16.68384]
[1688222601994,10.39236,1924.5,1924.0,17.62984]
[1688222602395,10.39236,1924.5,1924.0,18.04285373]
[1688222602396,5.19618,1924.5,1924.0,18.04285373]
[1688222602583,5.19618,1924.5,1924.1,1.80428537]
[1688222602797,5.19618,1924.5,1924.2,10.39386]
[1688222605893,10.39206,1924.6,1924.2,10.39386]
[1688222612181,5.19602,1924.6,1924.2,10.39386]
[1688222612382,11.79741,1924.7,1924.2,10.39386]
[1688222612583,3.0,1924.7,1924.3,1.039386]
[1688222612788,3.0,1924.7,1924.4,10.87274]
[1688222613095,4.6844,1924.8,1924.4,10.87274]
[1688222613794,3.0,1924.8,1924.4,13.47095]
[1688222613970,5.19517,1924.9,1924.4,13.47095]
[1688222614317,5.19517,1924.9,1924.5,11.739105]
[1688222614613,15.13023,1925.0,1924.5,11.739105]
[1688222614809,3.0,1924.9,1924.5,11.739105]
[1688222615584,8.19516,1924.9,1924.5,11.739105]
[1688222615811,13.39032,1924.9,1924.6,0.48]
[1688222616214,13.39032,1924.9,1924.4,0.01405238]
[1688222616215,17.760652,1924.9,1924.4,0.01405238]
[1688222616516,17.760652,1924.9,1924.4,0.49405238]
[1688222616683,10.39132,1924.7,1924.4,0.49405238]
[1688222621898,10.39132,1924.7,1924.4,5.69045238]
[1688222622242,10.39132,1924.7,1924.4,7.08142022]
[1688222623249,1.7403,1924.8,1924.4,7.08142022]
[1688222623400,13.38988,1925.0,1924.4,15.82205022]
[1688222623723,9.9369,1925.0,1924.4,15.82205022]
[1688222623909,4.742,1925.0,1924.4,15.82205022]
[1688222624105,3.0,1925.0,1924.6,10.39148]
[1688222624307,3.0,1925.0,1924.6,12.98942]
[1688222624517,3.0,1925.1,1924.6,13.93542]
[1688222624699,3.0,1925.1,1924.6,17.54182]
[1688222625097,8.19465,1925.1,1924.7,5.67543]
[1688222625300,8.19465,1925.1,1924.8,0.567543]
[1688222629062,8.19465,1925.1,1924.8,5.762813]
[1688222632849,8.19465,1925.1,1924.7,5.68948019]
[1688222632850,13.3893,1925.1,1924.7,5.68948019]
[1688222633049,15.0022,1925.1,1924.7,5.68948019]
[1688222633930,15.0022,1925.1,1924.7,0.01405019]
[1688222634440,15.0022,1925.1,1924.7,5.20961019]
[1688222636720,15.0022,1925.1,1924.7,10.40522019]
[1688222639953,9.80755,1925.1,1924.7,10.40522019]
[1688222640113,4.6129,1925.1,1924.7,12.06743621]
[1688222640317,0.41992186,1925.2,1924.8,0.48]
[1688222640318,5.61428186,1925.2,1924.8,0.48]
[1688222640528,10.38878,1925.2,1924.9,10.39004]
[1688222640735,10.38878,1925.2,1924.9,11.736804]
[1688222642450,5.04499507,1925.3,1924.9,11.736804]
[1688222642656,5.04499507,1925.3,1924.9,15.279334]
[1688222642657,0.41769507,1925.3,1924.9,15.279334]
[1688222642954,0.13256346,1925.4,1925.0,0.48]
[1688222643153,0.13256346,1925.4,1925.1,10.38896]
[1688222643953,3.13256346,1925.4,1925.1,10.38896]
[1688222644257,3.0,1925.4,1925.1,10.38896]
[1688222645355,3.0,1925.4,1925.1,12.1040588]
[1688222645731,8.19373,1925.4,1925.1,12.1040588]
[1688222646118,3.0,1925.4,1925.1,12.1040588]
[1688222646560,3.13154276,1925.5,1925.1,12.1040588]
[1688222647329,8.32500276,1925.5,1925.1,12.1040588]
[1688222648261,3.13154276,1925.5,1925.2,6.40464588]
[1688222648428,3.0,1925.5,1925.2,11.59890588]
[1688222648630,1.6348,1925.6,1925.2,11.59890588]
[1688222648631,4.6348,1925.6,1925.2,11.59890588]
[1688222648828,1.6348,1925.6,1925.2,11.59890588]
[1688222651474,6.82799,1925.6,1925.2,11.59890588]
[1688222651636,3.0,1925.5,1925.3,1.15989059]
[1688222651974,1.6348,1925.6,1925.3,6.35387059]
[1688222652265,1.76353513,1925.6,1925.3,6.35387059]
[1688222652963,1.76353513,1925.6,1925.3,1.15989059]
[1688222654333,6.95672513,1925.6,1925.3,1.15989059]
[1688222654528,3.0,1925.5,1925.3,1.15989059]
[1688222655365,3.0,1925.5,1925.2,11.61283242]
[1688222656472,4.76353513,1925.6,1925.2,11.61283242]
[1688222657562,9.95674513,1925.6,1925.2,11.61283242]
[1688222657849,15.14995513,1925.6,1925.2,11.61283242]
[1688222659151,15.14995513,1925.6,1925.2,6.41859242]
[1688222663160,15.14995513,1925.6,1925.2,5.20818654]
[1688222665584,15.14995513,1925.6,1925.2,0.01404654]
[1688222665790,15.14995513,1925.6,1925.2,0.49404654]
[1688222666257,17.74654513,1925.6,1925.2,5.68828654]
[1688222669693,17.74654513,1925.6,1925.2,0.49404654]
[1688222672176,19.56335573,1925.6,1925.2,0.49404654]
[1688222673895,19.56335573,1925.6,1925.2,0.01404654]
[1688222674135,20.50535573,1925.6,1925.2,0.01404654]
[1688222674404,0.946,1925.5,1925.2,0.01404654]
[1688222674561,0.946,1925.5,1924.8,5.19517]
[1688222674562,12.9843,1925.4,1924.7,1.5231]
[1688222674767,12.9843,1925.4,1924.6,0.938]
[1688222674768,0.00258113,1925.3,1924.6,5.19567]
[1688222674967,12.98638,1925.1,1924.5,11.97429502]
[1688222675196,12.98638,1925.1,1924.5,10.36472502]
[1688222675396,12.98638,1925.1,1924.5,15.56087502]
[1688222675597,12.98638,1925.1,1924.6,1.5560875]
[1688222675797,14.65698,1925.1,1924.6,1.5560875]
[1688222676101,14.65698,1925.1,1924.6,6.7519175]
[1688222677091,14.65698,1925.1,1924.6,11.9477975]
[1688222677397,14.65698,1925.1,1924.7,0.48]
[1688222677589,14.65698,1925.1,1924.7,1.72277975]
[1688222677789,14.65698,1925.1,1924.7,6.91835975]
[1688222677990,14.65698,1925.1,1924.8,0.01404946]
[1688222679910,12.05972,1925.1,1924.8,5.20936946]
[1688222681204,10.38912,1925.1,1924.8,5.20936946]
[1688222681406,10.38912,1925.1,1924.8,6.42214238]
[1688222685583,5.19456,1925.1,1924.8,6.42214238]
[1688222687292,5.19456,1925.1,1924.8,11.61748238]
[1688222691118,5.19456,1925.1,1924.8,6.42214238]
[1688222691416,12.98638,1925.1,1924.5,2.0634]
[1688222691624,5.19521,1924.9,1924.5,2.0634]
[1688222693225,5.19521,1924.9,1924.6,0.48]
[1688222695228,15.12308,1925.0,1924.6,5.67586]
[1688222695539,9.92807,1925.0,1924.6,5.67586]
[1688222695908,9.92807,1925.0,1924.6,7.13261817]
[1688222696108,9.92807,1925.0,1924.7,0.01405019]
[1688222697004,9.92807,1925.0,1924.7,5.20964019]
[1688222699447,3.0,1925.0,1924.7,10.40525019]
[1688222699775,3.0,1925.0,1924.8,5.67518]
[1688222699915,8.19464,1925.1,1924.8,0.48]
[1688222700242,5.19485,1925.0,1924.8,0.48]
[1688222700435,5.19485,1925.0,1924.7,0.2817899]
[1688222700637,11.728649,1925.0,1924.7,0.01405019]
[1688222700836,13.321549,1925.0,1924.7,0.01405019]
[1688222701918,15.918949,1925.0,1924.7,0.01405019]
[1688222702119,15.918949,1925.0,1924.6,0.48]
[1688222702345,19.55105197,1925.0,1924.3,0.41817342]
[1688222702548,4.9551052,1924.9,1924.3,10.81140342]
[1688222702719,10.39112,1924.8,1924.3,10.39323]
[1688222702916,12.12862,1924.8,1924.3,10.39323]
[1688222704247,12.12862,1924.8,1924.4,0.48]
[1688222704446,3.0,1924.9,1924.5,10.39225]
[1688222704624,3.0,1924.9,1924.5,12.99032]
[1688222704625,5.19521,1924.9,1924.5,12.99032]
[1688222704814,10.39043,1924.9,1924.5,12.99032]
[1688222705022,10.39043,1924.9,1924.6,1.299032]
[1688222705332,2.68752184,1924.8,1924.2,5.61222118]
[1688222705535,10.39166,1924.7,1924.2,10.39375]
[1688222705834,10.39166,1924.7,1924.2,13.00628384]
[1688222705835,5.19583,1924.7,1924.2,13.00628384]
[1688222706147,6.84053,1924.7,1924.2,13.00628384]
[1688222706351,17.32168184,1924.7,1924.2,0.01405384]
[1688222706516,17.32168184,1924.7,1923.9,30.03]
[1688222706517,6.63352184,1924.6,1923.9,30.03]
[1688222706846,10.3929,1924.4,1924.0,10.39484]
[1688222708522,5.19645,1924.4,1924.0,10.39484]
[1688222711145,12.03726,1924.5,1924.0,10.39484]
[1688222711345,14.72478184,1924.5,1924.0,10.39484]
[1688222711560,14.72478184,1924.5,1924.0,11.7894166]
[1688222712219,4.33222184,1924.5,1924.0,11.7894166]
[1688222712421,1.6447,1924.5,1924.0,14.3881666]
[1688222712649,3.0,1924.6,1924.1,0.48]
[1688222712834,3.0,1924.7,1924.2,13.9343]
[1688222713023,4.7393,1924.8,1924.4,5.19639]
[1688222713437,9.93466,1924.8,1924.4,5.19639]
[1688222713934,9.93466,1924.8,1924.3,7.31644]
[1688222713935,15.13002,1924.8,1924.3,7.31644]
[1688222714133,17.72769,1924.8,1924.3,7.31644]
[1688222715325,17.72769,1924.8,1924.1,1.70735766]
[1688222715326,2.68752184,1924.7,1924.1,1.70735766]
[1688222715536,2.68752184,1924.7,1924.2,5.19676]
[1688222715537,8.19599,1924.6,1924.2,5.19676]
[1688222715777,8.19599,1924.6,1924.2,10.39356]
[1688222716072,3.0,1924.6,1924.3,10.40714311]
[1688222716367,3.0,1924.6,1924.3,13.00548311]
[1688222716571,3.0,1924.8,1924.4,1.78054831]
[1688222716868,3.0,1924.8,1924.4,12.17313831]
[1688222721185,13.255404,1925.0,1924.4,12.17313831]
[1688222721186,1.040104,1925.0,1924.4,15.71034831]
[1688222721339,8.73419,1925.3,1924.4,16.32134831]
[1688222721695,11.42163184,1925.3,1924.7,10.391]
[1688222721882,16.61579184,1925.3,1924.7,10.391]
[1688222722184,16.61579184,1925.3,1924.7,11.337]
[1688222722385,18.95401624,1925.3,1924.7,11.337]
[1688222722538,3.95705922,1925.3,1924.7,15.0145]
[1688222722745,2.217088,1925.6,1924.9,0.945]
[1688222722746,5.19373,1925.4,1924.9,0.945]
[1688222722966,5.19359,1925.5,1924.9,0.945]
[1688222722967,6.91839,1925.5,1925.0,5.67477]
[1688222723853,5.19373,1925.4,1925.0,5.67477]
[1688222724269,3.0,1925.3,1925.0,5.67477]
[1688222724671,3.0,1925.3,1925.0,5.688818]
[1688222725798,3.0,1925.3,1925.0,6.7771978]
[1688222725987,11.18350094,1925.6,1925.0,11.9719978]
[1688222725988,3.0,1925.4,1925.0,11.9719978]
[1688222726185,8.19349,1925.5,1925.0,11.9719978]
[1688222727467,8.19349,1925.5,1925.0,14.5693978]
[1688222727797,8.19349,1925.5,1925.0,11.9719978]
[1688222728214,13.38698,1925.5,1925.0,11.9719978]
[1688222728507,15.9837,1925.5,1925.0,6.7771978]
[1688222728711,18.29711109,1925.5,1925.0,6.7771978]
[1688222730293,15.70039109,1925.5,1925.0,6.7771978]
[1688222731515,13.38698,1925.5,1925.0,6.7771978]
[1688222732985,13.38698,1925.5,1925.0,11.9719978]
[1688222733301,13.38698,1925.5,1925.0,6.7771978]
[1688222736882,13.38698,1925.5,1925.0,11.9719978]
[1688222737516,13.38698,1925.5,1925.0,13.9126978]
[1688222737713,13.38698,1925.5,1925.0,8.7178978]
[1688222739328,15.70065221,1925.5,1925.0,8.7178978]
[1688222739825,18.29737221,1925.5,1925.0,8.7178978]
[1688222742394,15.70065221,1925.5,1925.0,8.7178978]
[1688222744313,8.19349,1925.5,1925.0,13.9126978]
[1688222745523,8.19349,1925.5,1925.0,8.7178978]
[1688222745728,13.38698,1925.5,1925.0,8.7178978]
[1688222747414,13.38698,1925.5,1925.0,13.9126978]
[1688222747932,13.38698,1925.5,1925.0,8.7178978]
[1688222748096,2.80370147,1925.6,1925.1,0.87178978]
[1688222748297,1.039802,1925.6,1925.2,1.926]
[1688222748496,1.898,1926.3,1925.3,15.58182]
[1688222748497,5.19165,1926.2,1925.3,15.58182]
[1688222748710,7.08943,1926.3,1925.6,12.98255]
[1688222748912,8.82963,1926.3,1925.6,12.98255]
[1688222749131,5.19114,1926.4,1925.8,0.946]
[1688222749432,5.19114,1926.4,1925.9,5.19225]
[1688222749621,10.38238,1926.4,1925.9,5.19225]
[1688222749810,10.38238,1926.4,1925.9,10.38462]
[1688222750002,10.38238,1926.4,1925.9,6.325312]
[1688222750198,10.38238,1926.4,1925.9,10.38462]
[1688222750535,12.97789,1926.4,1925.9,5.19225]
[1688222751505,3.0,1926.3,1925.9,5.19225]
[1688222751915,8.1915,1926.3,1925.9,5.19225]
[1688222752112,8.1915,1926.3,1926.0,0.01404071]
[1688222753031,3.0,1926.3,1926.0,5.20612071]
[1688222754411,3.0,1926.4,1926.0,5.20612071]
[1688222754731,3.0,1926.4,1926.0,10.39822071]
[1688222755231,5.68752184,1926.4,1926.0,10.39822071]
[1688222756218,5.68752184,1926.4,1926.0,5.20612071]
[1688222756936,5.68752184,1926.4,1926.0,10.39822071]
[1688222760423,5.68752184,1926.4,1926.0,11.69766078]
[1688222761243,3.0,1926.4,1926.0,11.69766078]
[1688222761721,5.15976032,1926.5,1926.0,11.69766078]
[1688222761916,13.03807216,1926.5,1926.0,11.69766078]
[1688222762846,18.22886216,1926.5,1926.0,11.69766078]
[1688222764243,13.03807216,1926.5,1926.0,11.69766078]
[1688222764823,7.84728216,1926.5,1926.0,16.38006078]
[1688222765531,3.41956032,1926.5,1926.2,5.19151]
[1688222765740,3.41956032,1926.5,1926.2,10.38307]
[1688222765741,0.41956032,1926.5,1926.2,10.38307]
[1688222765941,0.41956032,1926.5,1926.2,12.97885]
[1688222766273,3.13273688,1926.6,1926.3,0.48]
[1688222766274,0.13273688,1926.6,1926.3,0.48]
[1688222766571,0.13273688,1926.6,1926.4,5.19102]
[1688222766848,5.32323688,1926.6,1926.3,1.345885]
[1688222767757,5.32323688,1926.6,1926.3,6.537155]
[1688222768053,5.1905,1926.6,1926.3,6.537155]
[1688222769065,10.89269288,1926.7,1926.3,6.537155]
[1688222769233,10.89269288,1926.7,1926.3,1.345885]
[1688222769437,10.89269288,1926.7,1926.2,10.39687925]
[1688222770573,11.01939543,1926.7,1926.2,10.39687925]
[1688222771426,8.51650727,1926.7,1926.2,0.01403925]
[1688222771634,0.946,1926.6,1926.2,0.01403925]
[1688222771936,11.32723,1926.6,1926.2,5.20555925]
[1688222772363,13.05207573,1926.6,1926.2,5.20555925]
[1688222772566,12.10607573,1926.6,1926.2,5.20555925]
[1688222773726,6.91535573,1926.6,1926.2,10.39711925]
[1688222773932,14.64586727,1926.7,1926.2,10.39711925]
[1688222774128,9.45548727,1926.7,1926.2,10.39711925]
[1688222775543,9.45548727,1926.7,1926.2,12.99289925]
[1688222776164,8.51648727,1926.7,1926.2,12.99289925]
[1688222777237,3.32611727,1926.7,1926.2,12.99289925]
[1688222777436,3.32611727,1926.7,1926.3,1.29928993]
[1688222777635,8.51634727,1926.7,1926.4,5.19097]
[1688222777863,3.32611727,1926.7,1926.4,5.19097]
[1688222782570,3.32611727,1926.7,1926.4,7.79097]
[1688222784974,3.32611727,1926.7,1926.4,2.6]
[1688222788469,3.32611727,1926.7,1926.4,7.79087]
[1688222788470,0.63859543,1926.7,1926.4,7.79087]
[1688222788694,8.82884543,1926.7,1926.4,12.98189]
[1688222788865,3.63859543,1926.7,1926.4,12.98189]
[1688222789769,8.82884543,1926.7,1926.4,12.98189]
[1688222790352,14.01909543,1926.7,1926.4,12.98189]
[1688222790783,15.94323397,1926.7,1926.4,12.98189]
[1688222791084,14.01909543,1926.7,1926.4,12.98189]
[1688222794269,14.01909543,1926.7,1926.4,7.79087]
[1688222794593,8.82884543,1926.7,1926.4,7.79087]
[1688222794777,8.82884543,1926.7,1926.4,12.98189]
[1688222795495,8.70214288,1926.7,1926.4,12.98189]
[1688222797097,21.77097701,1926.7,1926.4,2.6]
[1688222797299,3.63352184,1926.6,1926.4,2.6]
[1688222797506,10.38152,1926.5,1926.4,2.6]
[1688222800387,2.68752184,1926.6,1926.4,2.6]
[1688222801960,15.54451517,1926.7,1926.4,2.6]
[1688222802177,7.85136701,1926.7,1926.4,7.79099]
[1688222802364,6.19941472,1926.7,1926.4,7.79099]
[1688222803490,6.19941472,1926.7,1926.4,2.6]
[1688222804008,11.38963472,1926.7,1926.4,2.6]
[1688222805088,8.70211288,1926.7,1926.4,2.6]
[1688222805288,8.70211288,1926.7,1926.4,7.791]
[1688222805718,13.89233288,1926.7,1926.4,2.6]
[1688222805900,15.72199694,1926.7,1926.4,2.6]
[1688222806293,21.95062878,1926.7,1926.4,2.6]
[1688222806494,21.00462878,1926.7,1926.4,2.6]
[1688222810816,21.95062878,1926.7,1926.4,2.6]
[1688222811797,21.00462878,1926.7,1926.4,2.6]
[1688222813020,2.10046288,1926.6,1926.4,2.6]
[1688222813221,5.19076,1926.5,1926.4,2.6]
[1688222815197,10.38126,1926.6,1926.4,2.6]
[1688222815820,5.19058,1926.6,1926.4,2.6]
[1688222818828,10.38126,1926.6,1926.4,2.6]
[1688222826341,15.16932672,1926.6,1926.4,2.6]
[1688222826541,17.76456672,1926.6,1926.4,2.6]
[1688222827850,2.68752184,1926.5,1926.4,2.6]
[1688222828143,18.66442184,1926.5,1926.4,2.6]
[1688222842124,18.61442184,1926.5,1926.4,2.6]
[1688222847020,19.01984589,1926.5,1926.4,2.6]
[1688222848470,16.42446589,1926.5,1926.4,2.6]
[1688222848674,16.01904184,1926.5,1926.4,2.6]
[1688222883310,20.51809586,1926.5,1926.4,2.6]
[1688222883470,26.65085586,1926.5,1926.4,2.6]
[1688222895328,27.63085586,1926.5,1926.4,2.6]
[1688222895533,27.63085586,1926.5,1926.4,2.1150214]
[1688222895903,0.5,1926.3,1925.7,3.6503]
[1688222896098,12.9804,1926.0,1925.7,3.6503]
[1688222896303,2.68752184,1925.9,1925.7,2.1184]
[1688222896537,10.38528,1925.8,1925.7,2.1184]
[1688222896698,13.07280184,1925.8,1925.4,5.1936]
[1688222896906,13.07280184,1925.8,1925.4,10.38722]
[1688222899119,13.07280184,1925.8,1925.4,5.1936]
[1688222899859,15.66912184,1925.8,1925.4,5.1936]
[1688222902070,15.66912184,1925.8,1925.4,6.701622]
[1688222904180,2.68752184,1925.7,1925.4,0.946]
[1688222904382,12.98295,1925.6,1925.3,4.6848]
[1688222904593,15.67047184,1925.6,1925.3,4.6848]
[1688222905339,15.67047184,1925.6,1925.3,3.0564]
[1688222907609,13.07388184,1925.6,1925.3,3.0564]
[1688222908127,13.07388184,1925.6,1925.3,8.25038]
[1688222908288,7.88070184,1925.6,1925.3,8.25038]
[1688222908777,13.07388184,1925.6,1925.3,8.25038]
[1688222909804,13.07388184,1925.6,1925.3,3.0564]
[1688222909981,13.07388184,1925.6,1925.3,8.25035]
[1688222913819,13.07388184,1925.6,1925.3,3.0564]
[1688222915917,13.07388184,1925.6,1925.3,8.25036]
[1688222917180,13.07388184,1925.6,1925.4,0.942]
[1688222919393,5.6145588,1925.7,1925.4,11.32943]
[1688222919693,6.231891,1926.0,1925.6,0.939]
[1688222920003,2.68752184,1926.0,1925.7,10.38577]
[1688222920198,5.19215,1926.0,1925.6,10.38614]
[1688222920411,5.19215,1926.0,1925.7,6.231434]
[1688222920412,5.19217,1926.0,1925.7,6.231434]
[1688222920615,10.38399,1926.1,1925.9,0.946]
[1688222920908,10.38397,1926.1,1926.0,0.939]
[1688222921112,10.38397,1926.1,1925.9,0.938]
[1688222921424,5.19196,1926.1,1925.9,6.13029]
[1688222921713,5.19183,1926.1,1925.9,6.13029]
[1688222923111,5.19183,1926.1,1925.9,11.32266]
[1688222923308,5.60578123,1926.2,1925.9,11.32266]
[1688222923309,10.79750123,1926.2,1925.9,11.32266]
[1688222923474,13.48502307,1926.2,1925.9,11.32266]
[1688222923902,13.48502307,1926.2,1925.9,10.38466]
[1688222925113,3.10156307,1926.2,1925.9,10.38466]
[1688222925299,3.10156307,1926.2,1925.9,12.98084]
[1688222925608,3.10156307,1926.2,1925.9,6.13829]
[1688222925815,3.10156307,1926.2,1925.9,11.33066]
[1688222926000,13.48497307,1926.2,1925.9,6.13829]
[1688222927018,13.48497307,1926.2,1925.9,11.33066]
[1688222927183,13.48497307,1926.2,1925.9,6.13829]
[1688222927585,13.48497307,1926.2,1925.9,5.19229]
[1688222934024,13.48497307,1926.2,1925.9,5.19235]
[1688222935002,16.08075307,1926.2,1925.9,5.19235]
[1688222937516,0.41404123,1926.2,1926.0,0.946]
[1688222937741,5.1911,1926.4,1926.1,6.12983]
[1688222937951,3.0,1926.3,1926.1,10.38366]
[1688222939439,3.0,1926.3,1926.1,5.19183]
[1688222942717,3.0,1926.3,1926.1,6.13783]
[1688222943848,3.0,1926.3,1926.1,11.32966]
[1688222944520,2.99310993,1926.3,1926.1,11.32966]
[1688222945640,2.99310993,1926.3,1926.1,6.13783]
[1688222946474,2.68752184,1926.4,1926.1,11.32966]
[1688222948442,2.68752184,1926.4,1926.1,13.92557]
[1688222948770,2.68752184,1926.4,1926.1,6.13783]
[1688222948977,2.68752184,1926.4,1926.1,11.32966]
[1688222950977,2.68752184,1926.4,1926.1,6.13783]
[1688222951163,2.68752184,1926.4,1926.1,12.97957]
[1688222951364,2.68752184,1926.4,1926.1,5.19183]
[1688222951546,2.68752184,1926.4,1926.1,12.97957]
[1688222951969,2.68752184,1926.4,1926.1,5.19183]
[1688222952153,7.87867184,1926.4,1926.1,5.19183]
[1688222952376,7.87854184,1926.4,1926.1,5.19183]
[1688222952684,7.87854184,1926.4,1926.0,14.07594]
[1688222952900,9.52614184,1926.4,1926.0,15.83927514]
[1688222953274,4.33512184,1926.4,1926.0,18.43532514]
[1688222954263,4.33512184,1926.4,1926.0,16.83982514]
[1688222963077,4.33512184,1926.4,1926.0,16.85386585]
[1688222966180,9.52617184,1926.4,1926.0,15.09066071]
[1688222969351,4.33512184,1926.4,1926.0,15.09066071]
[1688222970249,2.68752184,1926.4,1926.0,15.09066071]
[1688222975948,4.34312184,1926.4,1926.0,15.09066071]
[1688222976148,4.34312184,1926.4,1926.0,17.02035078]
[1688222976988,9.53417184,1926.4,1926.0,17.02035078]
[1688222977277,4.34312184,1926.4,1926.0,17.02035078]
[1688222977575,9.53420184,1926.4,1926.0,17.02035078]
[1688222977779,14.72528184,1926.4,1926.0,17.02035078]
[1688222977981,14.72528184,1926.4,1926.0,14.42430078]
[1688222978180,2.68752184,1926.3,1926.0,0.01404071]
[1688222978368,5.19156,1926.2,1926.0,0.01404071]
[1688222978557,7.87908184,1926.2,1926.0,0.01404071]
[1688222978880,7.87908184,1926.2,1925.9,5.19216]
[1688222978881,13.07064184,1926.2,1925.9,5.19216]
[1688222979097,14.73097102,1926.2,1925.9,5.19216]
[1688222980377,14.73097102,1926.2,1925.9,10.38453]
[1688222981448,9.53941102,1926.2,1925.9,5.19216]
[1688222981673,14.73097102,1926.2,1925.9,5.19216]
[1688222982983,7.87943184,1926.1,1925.9,5.19216]
[1688222984263,7.87943184,1926.1,1925.8,10.385]
[1688222984596,7.87943184,1926.1,1925.8,5.19249]
[1688222984890,7.87943184,1926.1,1925.9,5.19236]
[1688222985471,7.87943184,1926.1,1925.9,10.38473]
[1688222990271,9.52016394,1926.1,1925.9,5.19236]
[1688222990884,9.52016394,1926.1,1925.9,5.19234]
[1688222991080,9.52016394,1926.1,1925.8,5.19247]
[1688222991296,9.52016394,1926.1,1925.9,5.19229]
[1688222993387,14.71199394,1926.1,1925.9,5.19229]
[1688222993582,14.71191394,1926.1,1925.8,10.38498]
[1688222993788,13.07118184,1926.1,1925.8,5.19247]
[1688222994176,7.87935184,1926.1,1925.8,5.19247]
[1688222995208,7.87935184,1926.1,1925.8,10.38511]
[1688222995907,7.87935184,1926.1,1925.8,5.19247]
[1688222996109,13.07118184,1926.1,1925.7,10.3995729]
[1688222996309,10.47526184,1926.1,1925.7,5.2068029]
[1688222996506,15.66709184,1926.1,1925.7,0.0140429]
[1688222996713,13.07118184,1926.1,1925.7,10.3998029]
[1688222997014,7.87935184,1926.1,1925.7,10.3998029]
[1688222997193,8.29135069,1926.1,1925.7,10.3998029]
[1688222997377,13.48318069,1926.1,1925.7,10.3998029]
[1688222997823,16.07909069,1926.1,1925.7,0.0140429]
[1688222997983,16.07909069,1926.1,1925.7,5.2069529]
[1688222999727,16.07909069,1926.1,1925.7,10.3998629]
[1688223000018,16.07909069,1926.1,1925.7,5.2069529]
[1688223000718,16.07909069,1926.1,1925.7,10.3998629]
[1688223001314,13.48318069,1926.1,1925.7,10.3998629]
[1688223005422,13.48318069,1926.1,1925.7,11.90040419]
[1688223005620,13.48318069,1926.1,1925.7,14.49685419]
[1688223008490,8.29135069,1926.1,1925.7,14.49685419]
[1688223011644,5.19107,1926.4,1925.8,0.942]
[1688223011856,5.68752184,1926.3,1925.9,10.38432]
[1688223012051,5.68752184,1926.3,1925.9,15.705132]
[1688223013068,10.87881184,1926.3,1925.9,7.916792]
[1688223013272,10.87881184,1926.3,1925.9,14.048162]
[1688223013775,5.68752184,1926.3,1925.9,14.048162]
[1688223014176,10.87895184,1926.3,1925.9,8.855792]
[1688223014375,16.07038184,1926.3,1926.0,0.8855792]
[1688223014582,10.87895184,1926.3,1926.0,0.8855792]
[1688223015076,16.07024184,1926.3,1925.9,2.531]
[1688223015258,17.82314184,1926.3,1925.9,6.14533144]
[1688223015450,17.82314184,1926.3,1925.9,0.95304144]
[1688223016078,12.63171184,1926.3,1925.9,11.33777144]
[1688223016654,5.68752184,1926.3,1925.9,11.33777144]
[1688223016854,5.68752184,1926.3,1926.0,1.13377714]
[1688223017081,5.68752184,1926.3,1926.1,5.19183]
[1688223017578,3.42477092,1926.5,1926.1,12.97953]
[1688223017779,5.68752184,1926.4,1926.1,12.97953]
[1688223017977,5.68752184,1926.4,1926.2,1.297953]
[1688223018285,5.68752184,1926.4,1926.2,6.489423]
[1688223018766,5.68752184,1926.4,1926.2,11.680983]